fUST/lending_fUST_20240917
["ID","MTS","AMOUNT","RATE_DAILY","PERIOD"]
[338395984,1726583050916,500.0,0.00024,60]
[338395986,1726583051759,500.0,0.00024,60]
[338395987,1726583052541,500.0,0.00024,60]
[338395988,1726583053355,500.0,0.00024,60]
[338395989,1726583054297,500.0,0.00024,60]
[338395990,1726583055115,500.0,0.00024,60]
[338395999,1726583102064,500.0,0.00024,60]
[338396000,1726583103802,500.0,0.00024,60]
[338396001,1726583105162,500.0,0.00024,60]
[338396003,1726583105482,500.0,0.00024,60]
[338396004,1726583106080,500.0,0.00024,60]
[338396005,1726583106525,500.0,0.00024,60]
[338396006,1726583107073,500.0,0.00024,60]
[338396007,1726583107524,500.0,0.00024,60]
[338396008,1726583107925,500.0,0.00024,60]
[338396009,1726583108330,500.0,0.00024,60]
[338396010,1726583109276,500.0,0.00024,60]
[338396011,1726583109876,500.0,0.00024,60]
[338396012,1726583115001,500.0,0.00024,60]
[338396013,1726583115871,500.0,0.00024,60]
[338396014,1726583115983,500.0,0.00024,60]
[338396015,1726583116073,500.0,0.00024,60]
[338396016,1726583116860,500.0,0.00024,60]
[338396018,1726583121273,500.0,0.00024,60]
[338396021,1726583135125,500.0,0.00024,60]
[338396022,1726583135555,500.0,0.00024,60]
[338396023,1726583136002,500.0,0.00024,60]
[338396024,1726583136384,500.0,0.00024,60]
[338396025,1726583137049,500.0,0.00024,60]
[338396028,1726583148417,1368.9,0.00024,60]
[338396033,1726583164820,1904.19710748,0.00024,60]
[338396034,1726583166753,10000.0,0.00021,60]
[338396035,1726583176566,10000.0,0.00021,60]
[338396037,1726583184551,10000.0,0.00021,60]
[338396038,1726583187672,10000.0,0.00021,60]
[338396039,1726583191773,10000.0,0.00021,60]
[338396040,1726583194461,10000.0,0.00021,60]
[338396041,1726583196007,10000.0,0.00021,60]
[338396042,1726583197828,10000.0,0.00021,60]
[338396043,1726583200623,10000.0,0.00021,60]
[338396044,1726583203181,10000.0,0.00021,60]
[338396045,1726583204686,10000.0,0.00021,60]
[338396046,1726583233535,1000.0,0.00024,60]
[338396047,1726583234721,1000.0,0.00024,60]
[338396048,1726583235115,-183.5192581,0.00016524,2]
[338396049,1726583235137,-245.0,0.00017381,2]
[338396050,1726583235161,-53.03529808,0.00017527,2]
[338396051,1726583235742,1000.0,0.00024,60]
[338396052,1726583236711,1000.0,0.00024,60]
[338396053,1726583237673,1000.0,0.00024,60]
[338396054,1726583238720,1000.0,0.00024,60]
[338396055,1726583239854,1000.0,0.00024,60]
[338396056,1726583240829,1000.0,0.00024,60]
[338396057,1726583241801,1000.0,0.00024,60]
[338396058,1726583242851,1000.0,0.00024,60]
[338396059,1726583244009,1000.0,0.00024,60]
[338396060,1726583245219,1000.0,0.00024,60]
[338396061,1726583252539,1000.0,0.00024,60]
[338396063,1726583253386,-113.63136792,0.00017527,2]
[338396064,1726583253410,-166.666666,0.00017984,2]
[338396065,1726583253433,-199.16870104,0.00018013,2]
[338396066,1726583253620,1000.0,0.00024,60]
[338396067,1726583254178,1000.0,0.00024,60]
[338396068,1726583254882,1000.0,0.00024,60]
[338396070,1726583265668,1388.23,0.00024,120]
[338396071,1726583265991,500.0,0.00024,120]
[338396072,1726583266051,387.0253735,0.00024,120]
[338396073,1726583268936,500.0,0.00024,120]
[338396074,1726583269401,560.27,0.00024,120]
[338396075,1726583270247,500.0,0.00024,120]
[338396076,1726583271393,6950.0,0.00021,60]
[338396077,1726583271875,2184.55,0.00024,120]
[338396078,1726583273030,2339.01,0.00024,120]
[338396079,1726583273300,624.97,0.00024,120]
[338396080,1726583273415,509.11,0.00024,120]
[338396081,1726583279208,500.0,0.00024,120]
[338396082,1726583280319,4638.17,0.00024,120]
[338396083,1726583281872,702.38,0.00024,120]
[338396084,1726583282113,2157.43,0.00024,120]
[338396085,1726583283182,500.0,0.00024,120]
[338396086,1726583284155,2333.35,0.00024,120]
[338396087,1726583284701,2844.63,0.00024,120]
[338396088,1726583286874,500.0,0.00024,120]
[338396089,1726583288546,1375.4,0.00024,120]
[338396090,1726583288828,783.8,0.00024,120]
[338396091,1726583289168,500.0,0.00024,120]
[338396092,1726583290036,1036.46,0.00024,120]
[338396093,1726583291896,500.0,0.00024,120]
[338396095,1726583295576,500.0,0.00024,120]
[338396096,1726583296086,500.0,0.00024,120]
[338396097,1726583296515,500.0,0.00024,120]
[338396098,1726583296631,1004.63,0.00024,120]
[338396099,1726583297912,9052.99,0.00024,120]
[338396101,1726583298711,2274.07,0.00024,120]
[338396102,1726583299669,1881.74,0.00024,120]
[338396103,1726583299761,2232.66,0.00024,120]
[338396104,1726583299958,557.15,0.00024,120]
[338396105,1726583301246,560.69,0.00024,60]
[338396106,1726583303318,505.46,0.00024,60]
[338396107,1726583304298,500.0,0.00024,60]
[338396108,1726583305036,960.19,0.00024,60]
[338396109,1726583307093,500.0,0.00024,60]
[338396110,1726583307908,500.0,0.00024,60]
[338396111,1726583309062,500.0,0.00024,60]
[338396112,1726583309198,1946.01,0.00024,60]
[338396113,1726583309395,932.74,0.00024,60]
[338396114,1726583310348,500.0,0.00024,120]
[338396115,1726583312169,500.0,0.00024,60]
[338396116,1726583312388,1919.93,0.00024,60]
[338396117,1726583314502,252.9593993,0.00024,60]
[338396118,1726583314679,2078.87,0.00024,60]
[338396119,1726583315455,3898.95,0.00024,60]
[338396121,1726583320146,2423.7,0.00024,60]
[338396122,1726583320356,500.0,0.00024,60]
[338396123,1726583321790,500.0,0.00024,60]
[338396124,1726583321885,209.93888161,0.00024,60]
[338396125,1726583322050,500.0,0.00024,60]
[338396126,1726583322137,2205.91,0.00024,60]
[338396127,1726583323106,515.79,0.00024,60]
[338396128,1726583323177,500.0,0.00024,60]
[338396129,1726583325246,2309.64,0.00024,60]
[338396130,1726583325587,1777.19,0.00024,60]
[338396131,1726583325791,513.79,0.00024,60]
[338396134,1726583326672,1599.69,0.00024,60]
[338396135,1726583326835,500.0,0.00024,60]
[338396166,1726583330390,1552.6,0.00024,60]
[338396183,1726583331552,500.0,0.00024,60]
[338396186,1726583331628,500.0,0.00024,60]
[338396213,1726583334224,500.0,0.00024,60]
[338396230,1726583334891,500.0,0.00024,60]
[338396232,1726583334957,500.0,0.00024,60]
[338396237,1726583335594,500.0,0.00024,60]
[338396247,1726583336285,500.0,0.00024,60]
[338396255,1726583337076,500.0,0.00024,60]
[338396257,1726583337170,500.0,0.00024,60]
[338396262,1726583338041,500.0,0.00024,60]
[338396263,1726583338194,500.0,0.00024,60]
[338396266,1726583338814,1894.16,0.00024,60]
[338396271,1726583339200,891.61,0.00024,60]
[338396273,1726583339265,500.0,0.00024,60]
[338396279,1726583339816,500.0,0.00024,60]
[338396281,1726583339933,500.0,0.00024,60]
[338396286,1726583340535,500.0,0.00024,60]
[338396292,1726583340803,2908.24,0.00024,60]
[338396296,1726583341105,500.0,0.00024,60]
[338396298,1726583341153,883.75,0.00024,60]
[338396303,1726583341405,500.0,0.00024,60]
[338396312,1726583341960,1966.66,0.00024,60]
[338396324,1726583342606,1326.0,0.00024,60]
[338396343,1726583344418,1467.95,0.00024,60]
[338396366,1726583345887,500.0,0.00024,60]
[338396383,1726583346901,500.0,0.00024,60]
[338396395,1726583347661,500.0,0.00024,60]
[338396400,1726583348063,1104.69,0.00024,60]
[338396415,1726583348921,1472.91,0.00024,60]
[338396417,1726583348980,2722.53,0.00024,60]
[338396421,1726583349304,500.0,0.00024,60]
[338396431,1726583350598,582.02,0.00024,60]
[338396437,1726583351212,500.0,0.00024,60]
[338396454,1726583353374,500.0,0.00024,60]
[338396467,1726583354651,3785.92,0.00024,60]
[338396473,1726583355802,931.5,0.00024,60]
[338396476,1726583355919,2297.57,0.00024,60]
[338396478,1726583356210,2331.47,0.00024,60]
[338396480,1726583356274,1626.4,0.00024,60]
[338396511,1726583358526,3222.24,0.00024,60]
[338396519,1726583359095,500.0,0.00024,60]
[338396533,1726583360559,1208.81,0.00024,60]
[338396545,1726583361203,2156.2,0.00024,60]
[338396552,1726583361676,1699.68,0.00024,60]
[338396560,1726583362228,1403.63,0.00024,60]
[338396564,1726583362470,500.0,0.00024,60]
[338396571,1726583363022,500.0,0.00024,60]
[338396586,1726583365139,500.0,0.00024,60]
[338396587,1726583365196,500.0,0.00024,60]
[338396588,1726583365249,989.28,0.00024,60]
[338396604,1726583367339,500.0,0.00024,60]
[338396607,1726583367608,990.24,0.00024,60]
[338396618,1726583368445,500.0,0.00024,60]
[338396624,1726583368960,823.34,0.00024,60]
[338396633,1726583369859,1246.45,0.00024,60]
[338396634,1726583369934,1982.16,0.00024,60]
[338396635,1726583370117,226.0788305,0.00024,60]
[338396645,1726583371081,813.16,0.00024,60]
[338396647,1726583371214,500.0,0.00024,60]
[338396649,1726583371593,1259.72,0.00024,60]
[338396652,1726583371787,885.35,0.00024,60]
[338396655,1726583371880,500.0,0.00024,60]
[338396657,1726583371967,500.0,0.00024,60]
[338396663,1726583373107,1006.67,0.00024,60]
[338396666,1726583373407,2380.04,0.00024,60]
[338396702,1726583375555,710.65,0.00024,60]
[338396708,1726583376817,621.34,0.00024,60]
[338396744,1726583379096,500.0,0.00024,60]
[338396755,1726583379757,500.0,0.00024,60]
[338396761,1726583380081,500.0,0.00024,60]
[338396776,1726583381085,500.0,0.00024,60]
[338396777,1726583381171,500.0,0.00024,60]
[338396791,1726583381912,500.0,0.00024,60]
[338396794,1726583382076,2359.87,0.00024,60]
[338396798,1726583382276,957.14,0.00024,60]
[338396800,1726583382381,500.0,0.00024,60]
[338396804,1726583382736,1155.21,0.00024,60]
[338396814,1726583383522,2408.91,0.00024,60]
[338396817,1726583383922,500.0,0.00024,60]
[338396821,1726583384126,500.0,0.00024,60]
[338396824,1726583384239,500.0,0.00024,60]
[338396826,1726583384344,1729.14,0.00024,60]
[338396831,1726583384540,500.0,0.00024,60]
[338396832,1726583384603,500.0,0.00024,60]
[338396839,1726583385220,500.0,0.00024,60]
[338396841,1726583385291,500.0,0.00024,60]
[338396844,1726583385437,1470.05,0.00024,60]
[338396854,1726583386777,500.0,0.00024,60]
[338396855,1726583387694,184.27028845,0.00024,60]
[338396861,1726583388314,500.0,0.00024,60]
[338396871,1726583389851,500.0,0.00024,60]
[338396874,1726583390030,500.0,0.00024,60]
[338396875,1726583390154,500.0,0.00024,60]
[338396877,1726583390336,500.0,0.00024,60]
[338396879,1726583390607,500.0,0.00024,60]
[338396885,1726583391004,3072.17,0.00024,60]
[338396911,1726583392441,926.87,0.00024,60]
[338396915,1726583392727,1419.29,0.00024,60]
[338396925,1726583393171,693.15,0.00024,60]
[338396931,1726583393477,2706.56,0.00024,60]
[338396970,1726583396035,500.0,0.00024,60]
[338396976,1726583396442,500.0,0.00024,60]
[338396996,1726583397496,500.0,0.00024,60]
[338397000,1726583397643,1567.49,0.00024,60]
[338397001,1726583397968,500.0,0.00024,60]
[338397002,1726583398056,500.0,0.00024,60]
[338397003,1726583398371,500.0,0.00024,60]
[338397008,1726583399003,500.0,0.00024,60]
[338397009,1726583399111,1288.22,0.00024,60]
[338397023,1726583399990,2041.35,0.00024,60]
[338397026,1726583400072,739.47,0.00024,60]
[338397036,1726583400740,500.0,0.00024,60]
[338397046,1726583401276,719.39,0.00024,60]
[338397051,1726583401700,1002.43,0.00024,60]
[338397057,1726583402037,500.0,0.00024,60]
[338397077,1726583403614,1039.84,0.00024,60]
[338397094,1726583404897,500.78658026,0.00024,60]
[338397099,1726583405266,500.0,0.00024,60]
[338397105,1726583405604,500.0,0.00024,60]
[338397112,1726583406039,500.0,0.00024,60]
[338397121,1726583406909,377.99,0.00024,60]
[338397127,1726583407252,500.0,0.00024,60]
[338397130,1726583407370,500.0,0.00024,60]
[338397144,1726583408832,913.49,0.00024,60]
[338397150,1726583409306,500.0,0.00024,60]
[338397170,1726583410910,500.0,0.00024,60]
[338397173,1726583411082,500.0,0.00024,60]
[338397183,1726583412107,3003.51,0.00024,60]
[338397199,1726583413356,500.0,0.00024,60]
[338397202,1726583413475,804.65,0.00024,60]
[338397205,1726583413553,500.0,0.00024,60]
[338397207,1726583413624,10380.09,0.00024,60]
[338397211,1726583413907,500.0,0.00024,60]
[338397214,1726583414176,500.0,0.00024,60]
[338397218,1726583414379,500.0,0.00024,60]
[338397238,1726583415653,500.0,0.00024,60]
[338397251,1726583417757,500.0,0.00024,60]
[338397252,1726583417826,536.93,0.00024,60]
[338397256,1726583418110,574.6,0.00024,60]
[338397260,1726583418378,500.0,0.00024,60]
[338397267,1726583418946,500.0,0.00024,60]
[338397268,1726583419308,500.0,0.00024,60]
[338397274,1726583419973,500.0,0.00024,60]
[338397289,1726583420933,500.0,0.00024,60]
[338397300,1726583421930,500.0,0.00024,60]
[338397307,1726583422287,5551.38,0.00024,60]
[338397309,1726583422356,726.02,0.00024,60]
[338397316,1726583422762,500.0,0.00024,60]
[338397323,1726583423351,500.0,0.00024,60]
[338397338,1726583424979,703.73,0.00024,60]
[338397340,1726583425042,691.11,0.00024,60]
[338397347,1726583425461,500.0,0.00024,60]
[338397349,1726583426295,3094.76,0.00024,60]
[338397350,1726583426349,500.0,0.00024,60]
[338397351,1726583426633,500.0,0.00024,60]
[338397352,1726583427081,500.0,0.00024,60]
[338397353,1726583427488,913.46,0.00024,60]
[338397354,1726583427668,165.68800194,0.00024,60]
[338397355,1726583427922,1510.48,0.00024,60]
[338397356,1726583428099,500.0,0.00024,60]
[338397357,1726583430053,500.0,0.00024,60]
[338397358,1726583431676,500.0,0.00024,60]
[338397377,1726583433598,500.0,0.00024,60]
[338397378,1726583434169,669.71,0.00024,60]
[338397379,1726583434528,7807.2,0.00024,60]
[338397380,1726583434703,500.0,0.00024,60]
[338397381,1726583434820,2236.13,0.00024,60]
[338397382,1726583434882,500.0,0.00024,60]
[338397383,1726583434944,1000.0,0.00024,60]
[338397384,1726583436492,500.0,0.00024,60]
[338397385,1726583436761,589.08,0.00024,60]
[338397386,1726583437034,1330.38,0.00024,60]
[338397387,1726583437297,500.0,0.00024,60]
[338397388,1726583437391,500.0,0.00024,60]
[338397389,1726583437889,500.0,0.00024,60]
[338397401,1726583438342,-300.0,0.00017954,2]
[338397402,1726583438352,-300.0,0.00017954,2]
[338397403,1726583438361,-624.6922916,0.00017955,2]
[338397404,1726583438373,-24275.3077084,0.00017955,2]
[338397405,1726583438382,-166.666666,0.00018441,2]
[338397407,1726583438392,-7591.18162559,0.00018695,2]
[338397409,1726583438401,-193.6,0.00018807,2]
[338397411,1726583438411,-661.0,0.00018841,2]
[338397413,1726583438421,-5000.0,0.000189,2]
[338397415,1726583438432,-150.0,0.000189,2]
[338397416,1726583438441,-222.078,0.0001896,2]
[338397417,1726583438450,-752.17,0.00019,2]
[338397418,1726583438460,-5000.0,0.00019,2]
[338397419,1726583438469,-10000.0,0.00019,7]
[338397420,1726583438478,-2121.39686,0.00019,2]
[338397421,1726583438488,-193.6,0.0001903,2]
[338397422,1726583438497,-1000.0,0.00019153,2]
[338397423,1726583438507,-165.380031,0.00019178,2]
[338397424,1726583438518,-163.702936,0.00019178,2]
[338397425,1726583438528,-1711.912592,0.00019178,2]
[338397426,1726583438538,-1864.37513673,0.0001919,2]
[338397427,1726583438547,-165.03,0.00019233,3]
[338397428,1726583438557,-495.09,0.00019233,3]
[338397429,1726583438569,-44043.2509138,0.00019243,3]
[338397430,1726583438579,-193.6,0.00019253,2]
[338397431,1726583438588,-168.77768086,0.00019258,2]
[338397432,1726583438598,-1907.66317954,0.00019258,2]
[338397433,1726583438607,-44043.2509138,0.0001926,3]
[338397434,1726583438616,-500.0,0.00019264,2]
[338397435,1726583438626,-534.24526533,0.00019269,2]
[338397436,1726583438635,-615.70722488,0.00019269,2]
[338397437,1726583438644,-500.0,0.00019269,2]
[338397438,1726583438654,-153.43806304,0.00019269,2]
[338397439,1726583438663,-474.46950673,0.00019269,2]
[338397440,1726583438674,-500.0,0.00019269,2]
[338397441,1726583438683,-500.0,0.00019269,2]
[338397442,1726583438692,-500.0,0.00019269,2]
[338397443,1726583438702,-500.0,0.00019269,2]
[338397444,1726583438711,-2491.05973863,0.00019269,2]
[338397445,1726583438727,-508.94026137,0.00019269,2]
[338397446,1726583438737,-44043.2509138,0.0001927,3]
[338397447,1726583438747,-132129.752741,0.0001927,3]
[338397448,1726583438756,-500.0,0.00019273,2]
[338397449,1726583438765,-500.0,0.00019273,2]
[338397450,1726583438774,-500.0,0.00019273,2]
[338397451,1726583438784,-500.0,0.00019273,2]
[338397452,1726583438793,-501.74878778,0.00019273,2]
[338397453,1726583438802,-477.0724992,0.00019273,2]
[338397454,1726583438812,-2000.0,0.0001928,2]
[338397455,1726583438822,-2000.0,0.0001928,2]
[338397456,1726583438832,-2000.0,0.0001928,2]
[338397457,1726583438842,-2000.0,0.0001928,2]
[338397458,1726583438851,-2000.0,0.0001928,2]
[338397459,1726583438860,-1462.69999118,0.0001928,2]
[338397460,1726583438869,-1000.0,0.00019289,2]
[338397461,1726583438878,-151.0,0.0001929,2]
[338397462,1726583438888,-388.535511,0.0001929,2]
[338397463,1726583438897,-388.535511,0.0001929,2]
[338397464,1726583438906,-151.0,0.0001929,2]
[338397465,1726583438916,-151.0,0.0001929,2]
[338397466,1726583438927,-2952.645012,0.0001929,2]
[338397467,1726583438936,-2952.645012,0.0001929,2]
[338397468,1726583438945,-235.957308,0.0001929,2]
[338397469,1726583438955,-235.957308,0.0001929,2]
[338397470,1726583438964,-151.0,0.0001929,2]
[338397471,1726583438973,-151.0,0.0001929,2]
[338397472,1726583438982,-290.149861,0.0001929,2]
[338397473,1726583438991,-290.149861,0.0001929,2]
[338397474,1726583439001,-151.0,0.0001929,2]
[338397475,1726583439010,-151.0,0.0001929,2]
[338397476,1726583439020,-151.0,0.0001929,2]
[338397477,1726583439029,-245.707442,0.0001929,2]
[338397478,1726583439040,-245.707442,0.0001929,2]
[338397479,1726583439053,-151.0,0.0001929,2]
[338397480,1726583439063,-151.0,0.0001929,2]
[338397481,1726583439072,-151.0,0.0001929,2]
[338397482,1726583439081,-22465.08324234,0.000193,5]
[338397483,1726583439089,-465205.3,0.000193,2]
[338397484,1726583439098,-46136.64,0.000193,2]
[338397485,1726583439108,-6208.47,0.000193,2]
[338397486,1726583439117,-115683.05,0.000193,2]
[338397487,1726583439127,-150.112235,0.000193,2]
[338397488,1726583439136,-219.074005,0.000193,2]
[338397489,1726583439145,-219.074005,0.000193,2]
[338397490,1726583439154,-151.0,0.000193,2]
[338397491,1726583439163,-151.0,0.000193,2]
[338397492,1726583439174,-151.0,0.000193,2]
[338397493,1726583439184,-151.0,0.000193,2]
[338397494,1726583439193,-388.535511,0.000193,2]
[338397495,1726583439203,-388.535511,0.000193,2]
[338397496,1726583439212,-388.535511,0.000193,2]
[338397497,1726583439221,-151.0,0.000193,2]
[338397498,1726583439231,-388.535511,0.000193,2]
[338397499,1726583439240,-151.0,0.000193,2]
[338397500,1726583439250,-151.0,0.000193,2]
[338397501,1726583439261,-151.0,0.000193,2]
[338397502,1726583439270,-151.0,0.000193,2]
[338397503,1726583439279,-151.0,0.000193,2]
[338397504,1726583439288,-151.0,0.000193,2]
[338397505,1726583439298,-151.0,0.000193,2]
[338397506,1726583439307,-151.0,0.000193,2]
[338397507,1726583439316,-151.0,0.000193,2]
[338397508,1726583439326,-151.0,0.000193,2]
[338397509,1726583439335,-151.0,0.000193,2]
[338397510,1726583439344,-151.755896,0.000193,2]
[338397511,1726583439353,-2952.645012,0.000193,2]
[338397512,1726583439363,-2952.645012,0.000193,2]
[338397513,1726583439372,-2952.645012,0.000193,2]
[338397514,1726583439382,-2952.645012,0.000193,2]
[338397515,1726583439391,-235.957308,0.000193,2]
[338397516,1726583439401,-235.957308,0.000193,2]
[338397517,1726583439410,-235.957308,0.000193,2]
[338397518,1726583439419,-235.957308,0.000193,2]
[338397519,1726583439431,-151.0,0.000193,2]
[338397520,1726583439441,-151.0,0.000193,2]
[338397521,1726583439450,-290.149861,0.000193,2]
[338397522,1726583439459,-290.149861,0.000193,2]
[338397523,1726583439469,-290.149861,0.000193,2]
[338397524,1726583439478,-290.149861,0.000193,2]
[338397525,1726583439488,-254.431996,0.000193,2]
[338397526,1726583439497,-290.504959,0.000193,2]
[338397527,1726583439506,-151.0,0.000193,2]
[338397528,1726583439515,-245.707442,0.000193,2]
[338397529,1726583439524,-151.0,0.000193,2]
[338397530,1726583439534,-245.707442,0.000193,2]
[338397531,1726583439543,-245.707442,0.000193,2]
[338397532,1726583439552,-245.707442,0.000193,2]
[338397533,1726583439561,-150.112233,0.000193,2]
[338397534,1726583439571,-151.0,0.000193,2]
[338397535,1726583439580,-151.0,0.000193,2]
[338397536,1726583439589,-151.0,0.000193,2]
[338397537,1726583439598,-246.919039,0.000193,2]
[338397538,1726583439607,-151.0,0.000193,2]
[338397539,1726583439616,-151.0,0.000193,2]
[338397540,1726583439625,-151.0,0.000193,2]
[338397541,1726583439635,-200.412627,0.000193,2]
[338397542,1726583439644,-600.0,0.000194,2]
[338397543,1726583439653,-600.0,0.000194,2]
[338397544,1726583439662,-329.775699,0.00019411,2]
[338397545,1726583439673,-436.328826,0.00019411,2]
[338397546,1726583439682,-507.721161,0.00019411,2]
[338397547,1726583439691,-153.220905,0.00019411,2]
[338397548,1726583439700,-160.0,0.00019411,7]
[338397549,1726583439709,-193.6,0.00019476,2]
[338397550,1726583439719,-214.0,0.000195,10]
[338397551,1726583439728,-1000.0,0.000195,2]
[338397552,1726583439740,-3270.68,0.000195,2]
[338397553,1726583439750,-1000.0,0.00019573,2]
[338397554,1726583439761,-420.0,0.0001959,2]
[338397555,1726583439770,-160.0,0.00019613,8]
[338397556,1726583439781,-329.775699,0.0001965,2]
[338397557,1726583439791,-436.328826,0.0001965,2]
[338397558,1726583439801,-507.721161,0.0001965,2]
[338397559,1726583439813,-153.220905,0.0001965,2]
[338397560,1726583439822,-169.240387,0.0001965,2]
[338397561,1726583439833,-175.033086,0.00019697,2]
[338397562,1726583439844,-175.033086,0.00019697,2]
[338397564,1726583439854,-193.6,0.00019699,2]
[338397567,1726583439863,-620.5626583,0.00019745,2]
[338397568,1726583439872,-420.0,0.00019749,2]
[338397570,1726583439881,-1000.4,0.000198,2]
[338397571,1726583439890,-6073.64693811,0.000198,2]
[338397572,1726583439900,-160.0,0.00019816,9]
[338397573,1726583439909,-154.11553568,0.00019836,2]
[338397574,1726583439918,-1711.912592,0.00019863,2]
[338397575,1726583439931,-329.775699,0.0001989,2]
[338397576,1726583439940,-436.328826,0.0001989,2]
[338397577,1726583439949,-507.721161,0.0001989,2]
[338397578,1726583439958,-153.220905,0.0001989,2]
[338397579,1726583439968,-193.6,0.00019922,2]
[338397580,1726583439977,-500.0,0.0001997,2]
[338397581,1726583439987,-2500.0,0.00019974,2]
[338397582,1726583439996,-2500.0,0.00019982,2]
[338397583,1726583440006,-2500.0,0.00019982,2]
[338397584,1726583440016,-2500.0,0.00019991,2]
[338397585,1726583440025,-2500.0,0.00019991,2]
[338397586,1726583440035,-4308.71902169,0.0002,2]
[338397587,1726583440044,-114919.53232346,0.0002,2]
[338397626,1726583440475,-2813.17256973,0.0001918,2]
[338397627,1726583440484,-29782.16350966,0.0002,2]
[338397656,1726583440958,500.0,0.00024,60]
[338397657,1726583441346,500.0,0.00024,60]
[338397658,1726583441413,500.0,0.00024,60]
[338397666,1726583442187,500.0,0.00024,60]
[338397669,1726583442583,500.0,0.00024,60]
[338397681,1726583443390,500.0,0.00024,60]
[338397682,1726583443407,-150.0,0.00018841,2]
[338397683,1726583443417,-4925.15773528,0.0002,2]
[338397685,1726583443432,-500.0,0.0002,2]
[338397686,1726583443443,-184.0,0.0002,2]
[338397687,1726583443453,-1000.0,0.0002,3]
[338397688,1726583443465,-154.7690208,0.0002,10]
[338397689,1726583443478,-942.93491692,0.0002,5]
[338397690,1726583443492,-10100.74065848,0.0002,5]
[338397691,1726583443503,-4696.29158832,0.0002,30]
[338397692,1726583443514,-771.23354239,0.0002,30]
[338397693,1726583443530,-1261.77289675,0.0002,30]
[338397694,1726583443542,-2500.0,0.0002,2]
[338397695,1726583443552,-2500.0,0.0002,2]